bitfinex-derivatives/quotes_BTCF0:USTF0_20251109
["timestamp","ask_amount","ask_price","bid_price","bid_amount"]
[1762696567777,0.42334891,103000.0,102990.0,0.44012141]
[1762696569572,0.65171993,103000.0,102990.0,0.44012141]
[1762696570377,0.65171993,103000.0,102990.0,0.017]
[1762696570772,0.65171993,103000.0,102990.0,0.48703]
[1762696570971,0.42334891,103000.0,102990.0,0.63206]
[1762696573281,0.59796281,103000.0,102990.0,0.63206]
[1762696573782,0.59796281,103000.0,102990.0,0.61625571]
[1762696574084,0.42334891,103000.0,102990.0,0.61625571]
[1762696574281,0.59795725,103000.0,102990.0,0.61625571]
[1762696574483,0.82632827,103000.0,102990.0,0.41031355]
[1762696574681,0.92869827,103000.0,102990.0,0.41031355]
[1762696575083,0.65171993,103000.0,102990.0,0.41031355]
[1762696575377,0.75408993,103000.0,102990.0,0.41031355]
[1762696575579,0.75408993,103000.0,102990.0,0.26528355]
[1762696576086,0.65171993,103000.0,102990.0,0.41031355]
[1762696576582,0.65171993,103000.0,102990.0,0.50741355]
[1762696576783,0.52571891,103000.0,102990.0,0.36238355]
[1762696577383,0.42334891,103000.0,102990.0,0.50741355]
[1762696577787,0.59795683,103000.0,102990.0,0.50741355]
[1762696578089,0.70032683,103000.0,102990.0,0.36238355]
[1762696579790,0.70032683,103000.0,102980.0,0.48118561]
[1762696580092,0.64722,102980.0,102970.0,0.95107]
[1762696580494,0.91435837,102980.0,102970.0,0.95107]
[1762696582390,0.79212301,102980.0,102970.0,0.95107]
[1762696582595,0.80612301,102980.0,102970.0,0.95107]
[1762696583496,0.82012301,102980.0,102970.0,0.95107]
[1762696583697,0.82012301,102980.0,102970.0,0.93526397]
[1762696584099,0.82012301,102980.0,102970.0,0.93266467]
[1762696584301,0.82012301,102980.0,102970.0,0.93162487]
[1762696584897,0.82012301,102980.0,102970.0,0.93076537]
[1762696585210,0.82012301,102980.0,102970.0,0.93069747]
[1762696585493,0.82012301,102980.0,102970.0,0.93062957]
[1762696585699,0.29515588,102980.0,102970.0,1.41606957]
[1762696586200,0.29515033,102980.0,102970.0,1.41606957]
[1762696588901,3.3e-07,102980.0,102970.0,2.01606957]
[1762696589206,0.16120386,103000.0,102990.0,0.60006]
[1762696589395,0.16120386,103000.0,102990.0,1.32166]
[1762696589600,0.30644461,103000.0,102990.0,1.8071]
[1762696589901,0.54984461,103000.0,102990.0,1.78497822]
[1762696590206,0.76609461,103000.0,102990.0,1.78497822]
[1762696590602,0.76909461,103000.0,102990.0,1.78997822]
[1762696593111,0.76909075,103000.0,102990.0,1.78997822]
[1762696593808,0.76909075,103000.0,102990.0,1.77417613]
[1762696594212,0.90182075,103000.0,102990.0,1.77417613]
[1762696594803,0.76909075,103000.0,102990.0,1.77417613]
[1762696595718,1.26262075,103000.0,102990.0,0.005]
[1762696596014,0.59238,102990.0,102980.0,0.82238561]
[1762696596203,0.59238,102990.0,102980.0,1.30782561]
[1762696596404,0.73763066,102990.0,102980.0,1.30782561]
[1762696596701,0.73763066,102990.0,102980.0,0.82238561]
[1762696597316,0.73863066,102990.0,102980.0,0.82838561]
[1762696597612,0.73863066,102990.0,102980.0,1.31382561]
[1762696597613,0.14625066,102990.0,102980.0,1.31382561]
[1762696597816,0.14625066,102990.0,102980.0,1.91382561]
[1762696598522,6.6e-07,102990.0,102980.0,1.91382561]
[1762696598826,0.14604708,102990.0,102980.0,1.91382561]
[1762696599303,0.84296024,103010.0,103000.0,0.04975]
[1762696599502,0.84296024,103010.0,103000.0,0.77135]
[1762696599714,0.98940451,103010.0,103000.0,1.25675]
[1762696600527,0.99240451,103010.0,103000.0,1.28175]
[1762696600726,0.61495451,103010.0,103000.0,1.28175]
[1762696601024,0.37155451,103010.0,103000.0,1.28175]
[1762696601221,0.37155451,103010.0,103000.0,1.28275]
[1762696601726,0.83120451,103010.0,103000.0,1.28275]
[1762696603530,0.83020451,103010.0,103000.0,1.27175]
[1762696603728,0.99040451,103010.0,103000.0,1.24694983]
[1762696604029,0.99038971,103010.0,103000.0,1.24694983]
[1762696608534,0.99038971,103010.0,103000.0,0.40074983]
[1762696608831,0.99038971,103010.0,103000.0,0.006]
[1762696614428,0.99038971,103010.0,103000.0,0.00319561]
[1762696616033,0.99038971,103010.0,103000.0,0.00170938]
[1762696617338,0.57369,102990.0,102980.0,0.36094561]
[1762696617632,0.88041339,102990.0,102980.0,0.48558561]
[1762696617934,0.88041339,102990.0,102980.0,0.00014561]
[1762696618232,0.88041339,102990.0,102980.0,0.36094561]
[1762696618436,0.71921339,102990.0,102980.0,0.36094561]
[1762696619631,0.522,103030.0,102980.0,0.95317561]
[1762696619832,0.522,103030.0,103000.0,0.3608]
[1762696620220,1.07168932,103030.0,103010.0,0.3608]
[1762696620425,1.43248932,103030.0,103010.0,0.00014561]
[1762696620631,0.522,103020.0,102990.0,0.3608]
[1762696620833,0.522,103020.0,103000.0,0.3608]
[1762696621037,0.44037289,103020.0,103000.0,0.95203]
[1762696621234,0.58531694,103020.0,103000.0,0.96603]
[1762696621535,0.58546255,103020.0,103000.0,0.96617561]
[1762696622037,1.22594725,103030.0,103010.0,0.3608]
[1762696622331,1.08953891,103030.0,103010.0,0.3608]
[1762696623227,1.08753891,103030.0,103010.0,0.3608]
[1762696623935,1.08953891,103030.0,103010.0,0.3748]
[1762696624728,1.16859937,103030.0,103010.0,0.3748]
[1762696625439,1.39550856,103030.0,103010.0,0.3748]
[1762696626038,1.39650856,103030.0,103010.0,0.51446]
[1762696626242,1.39650856,103030.0,103010.0,0.74485]
[1762696627136,1.39650856,103030.0,103010.0,0.51446]
[1762696627437,1.39650856,103030.0,103010.0,0.3848]
[1762696628442,1.39650856,103030.0,103020.0,0.3608]
[1762696629139,1.16959937,103030.0,103020.0,0.3608]
[1762696629640,1.16959937,103030.0,103010.0,0.50446]
[1762696629641,1.16859937,103030.0,103010.0,0.50446]
[1762696629944,1.16959937,103030.0,103020.0,0.01]
[1762696630142,1.45067139,103030.0,103020.0,0.01]
[1762696630340,1.45067139,103030.0,103020.0,0.025]
[1762696630531,1.45067139,103030.0,103020.0,0.3858]
[1762696630737,0.66799616,103030.0,103020.0,0.3758]
[1762696630930,0.66699616,103030.0,103020.0,0.3608]
[1762696631135,0.66899616,103030.0,103020.0,0.3608]
[1762696632743,0.66799616,103030.0,103020.0,0.3608]
[1762696632934,0.66899616,103030.0,103020.0,0.3708]
[1762696633135,0.66699616,103030.0,103020.0,0.3708]
[1762696633440,0.66899616,103030.0,103020.0,0.3878]
[1762696633630,1.45967848,103030.0,103020.0,0.3878]
[1762696633835,0.5899357,103030.0,103020.0,0.3878]
[1762696634043,0.5899357,103030.0,103020.0,0.027]
[1762696634942,0.66636391,103030.0,103020.0,0.027]
[1762696637141,0.66636391,103030.0,103020.0,0.15666]
[1762696637845,0.66636391,103030.0,103020.0,0.38705]
[1762696638045,1.42520906,103030.0,103020.0,0.38705]
[1762696638244,0.30886368,103030.0,103020.0,0.38705]
[1762696638741,0.38720209,103030.0,103020.0,0.38705]
[1762696638948,0.38720209,103030.0,103020.0,0.97903]
[1762696640651,0.61430704,103030.0,103020.0,0.97903]
[1762696641954,0.38720209,103030.0,103020.0,0.97903]
[1762696642350,0.38720209,103030.0,103020.0,0.99844]
[1762696642554,0.56192193,103030.0,103020.0,0.99844]
[1762696644244,0.38720209,103030.0,103020.0,0.99844]
[1762696644446,0.38720209,103030.0,103020.0,0.97903]
[1762696644650,0.38720209,103030.0,103020.0,0.99844]
[1762696645054,0.38720209,103030.0,103020.0,1.48376]
[1762696645257,0.56189098,103030.0,103020.0,1.48376]
[1762696646150,0.38720209,103030.0,103020.0,1.48376]
[1762696646344,0.22600209,103030.0,103020.0,1.48376]
[1762696647747,0.22400209,103030.0,103020.0,1.46676]
[1762696648054,0.22500209,103030.0,103020.0,1.47376]
[1762696648255,0.22600209,103030.0,103020.0,1.48676]
[1762696648554,0.38740209,103030.0,103020.0,1.48676]
[1762696649157,0.50953673,103030.0,103020.0,1.48676]
[1762696650955,0.01261336,103040.0,103030.0,0.63203]
[1762696651156,0.64636889,103050.0,103040.0,0.43203]
[1762696651361,0.64636889,103050.0,103040.0,1.25595292]
[1762696651564,0.84349523,103050.0,103040.0,1.00429292]
[1762696652257,0.9229054,103050.0,103040.0,1.00429292]
[1762696652664,0.70934603,103050.0,103040.0,1.48953292]
[1762696653961,0.93645098,103050.0,103040.0,1.49953292]
[1762696654163,0.63899139,103050.0,103040.0,1.49953292]
[1762696654462,0.63999139,103050.0,103040.0,1.51053292]
[1762696654761,0.63999139,103050.0,103040.0,1.49473724]
[1762696655160,0.41288644,103050.0,103040.0,1.49473724]
[1762696655357,0.41188644,103050.0,103040.0,1.48373724]
[1762696655557,0.41288644,103050.0,103040.0,1.49573724]
[1762696655757,0.23866603,103050.0,103040.0,1.49573724]
[1762696656059,0.23866603,103050.0,103040.0,1.49873724]
[1762696657066,0.23866603,103050.0,103040.0,1.50073724]
[1762696657361,0.23766603,103050.0,103040.0,1.48873724]
[1762696657564,0.23966603,103050.0,103040.0,1.48873724]
[1762696657865,0.23966603,103050.0,103040.0,1.47573724]
[1762696658271,0.23766603,103050.0,103040.0,1.47573724]
[1762696661968,0.70934603,103050.0,103040.0,1.47573724]
[1762696665276,0.70934603,103050.0,103040.0,1.45994199]
[1762696675379,0.45150603,103050.0,103040.0,1.45994199]
[1762696675679,0.72719603,103050.0,103040.0,1.44414676]
[1762696678169,0.23766603,103050.0,103040.0,1.44414676]
[1762696678771,0.51420603,103050.0,103040.0,1.44414676]
[1762696679476,0.23766603,103050.0,103040.0,1.42203349]
[1762696680283,0.51420603,103050.0,103040.0,1.42203349]
[1762696680782,0.63653151,103050.0,103040.0,1.42203349]
[1762696681773,0.90939151,103050.0,103040.0,1.42203349]
[1762696683171,0.35999151,103050.0,103040.0,1.42203349]
[1762696683576,0.23766603,103050.0,103040.0,1.42203349]
[1762696684272,0.78706603,103050.0,103040.0,1.42203349]
[1762696684478,0.94540603,103050.0,103040.0,1.42203349]
[1762696684685,0.94540603,103050.0,103040.0,1.25864349]
[1762696685279,1.11962644,103050.0,103040.0,1.25864349]
[1762696685576,1.11962644,103050.0,103040.0,1.07492063]
[1762696685882,1.11962644,103050.0,103040.0,1.05912436]
[1762696686182,0.94540603,103050.0,103040.0,1.05912436]
[1762696686486,1.17251098,103050.0,103040.0,1.33530436]
[1762696686890,1.17251098,103050.0,103040.0,0.83065436]
[1762696687580,1.17251098,103050.0,103040.0,0.80853939]
[1762696687888,1.17251098,103050.0,103040.0,0.91707939]
[1762696688478,1.17251098,103050.0,103040.0,0.80853939]
[1762696691281,0.94540603,103050.0,103040.0,0.91707939]
[1762696693986,0.78706603,103050.0,103040.0,0.91707939]
[1762696694192,0.94540603,103050.0,103040.0,1.42172939]
[1762696697790,0.94540603,103050.0,103040.0,0.93648939]
[1762696698095,0.94540603,103050.0,103040.0,1.42172939]
[1762696698495,0.94540603,103050.0,103040.0,1.22221181]
[1762696698694,1.12019518,103050.0,103040.0,1.11367181]
[1762696699188,1.12019518,103050.0,103040.0,1.09155684]
[1762696699587,1.17251098,103050.0,103040.0,1.09155684]
[1762696702905,1.17251098,103050.0,103040.0,1.18989283]
[1762696703109,0.94540603,103050.0,103040.0,1.18989283]
[1762696703701,1.1201493,103050.0,103040.0,1.18989283]
[1762696704207,1.1201493,103050.0,103040.0,0.68524283]
[1762696707201,1.1201493,103050.0,103040.0,0.70465283]
[1762696708504,1.1201493,103050.0,103040.0,0.68885634]
[1762696710606,1.1201493,103050.0,103040.0,0.39326634]
[1762696710805,1.1201493,103050.0,103040.0,0.3628]
[1762696711415,0.4124093,103050.0,103030.0,1.00556]
[1762696711607,0.4124093,103050.0,103040.0,0.14697]
[1762696711802,0.23766603,103050.0,103040.0,0.14697]
[1762696712111,0.23766603,103050.0,103040.0,0.001]
[1762696712314,0.23766603,103050.0,103040.0,0.011]
[1762696712814,0.23766603,103050.0,103040.0,0.01]
[1762696713204,0.23766603,103050.0,103040.0,0.009]
[1762696714402,0.23766603,103050.0,103040.0,0.022]
[1762696714706,0.23766603,103050.0,103040.0,0.42198]
[1762696714910,0.23766603,103050.0,103040.0,0.16797]
[1762696715514,0.23766603,103050.0,103040.0,0.66576]
[1762696716416,0.46476554,103050.0,103040.0,0.66576]
[1762696716616,0.46476554,103050.0,103040.0,0.66376]
[1762696717211,0.46476554,103050.0,103040.0,1.02456]
[1762696718405,0.46476554,103050.0,103040.0,0.66376]
[1762696718714,0.46476554,103050.0,103040.0,1.02456]
[1762696720715,0.46476554,103050.0,103040.0,0.92220597]
[1762696721115,0.23766603,103050.0,103040.0,0.92220597]
[1762696726712,0.60834603,103050.0,103040.0,0.91601579]
[1762696726911,0.83539197,103050.0,103040.0,0.91601579]
[1762696727419,0.83539197,103050.0,103040.0,0.89389772]
[1762696728620,0.83539197,103050.0,103040.0,0.87809936]
[1762696729921,0.65005197,103050.0,103040.0,1.38274936]
[1762696730114,0.46471197,103050.0,103040.0,1.38274936]
[1762696730512,0.23766603,103050.0,103040.0,1.38274936]
[1762696730714,0.75182603,103050.0,103040.0,1.38274936]
[1762696731520,1.21564603,103050.0,103040.0,0.27572]
[1762696731719,0.26334,103040.0,103030.0,1.03691]
[1762696731909,0.51416,103040.0,103030.0,1.52215]
[1762696732321,0.66046493,103040.0,103030.0,1.54156]
[1762696733516,0.66046493,103040.0,103030.0,1.54856]
[1762696735027,0.66146493,103040.0,103030.0,1.55656]
[1762696735430,0.66146493,103040.0,103030.0,1.53444166]
[1762696738028,0.40964493,103040.0,103030.0,1.52644166]
[1762696738330,0.14730493,103040.0,103030.0,1.53644166]
[1762696738521,0.14730493,103040.0,103030.0,1.52064297]
[1762696738721,0.41417493,103040.0,103030.0,1.52064297]
[1762696739027,0.67889493,103040.0,103030.0,1.52064297]
[1762696740124,0.41417493,103040.0,103030.0,1.51364297]
[1762696740326,0.14730493,103040.0,103030.0,1.51964297]
[1762696740527,0.41417493,103040.0,103030.0,1.51964297]
[1762696740927,0.14730493,103040.0,103030.0,1.51964297]
[1762696741731,0.14877406,103040.0,103030.0,1.51964297]
[1762696743424,0.14877406,103040.0,103030.0,1.49752573]
[1762696743831,0.37582,103040.0,103030.0,1.49752573]
[1762696745434,0.51522369,103050.0,103040.0,0.67848]
[1762696745634,0.51522369,103050.0,103040.0,1.54393]
[1762696745930,1.19216562,103050.0,103040.0,1.54393]
[1762696746527,1.19216562,103050.0,103040.0,1.54993]
[1762696748033,1.19216562,103050.0,103040.0,1.55493]
[1762696748530,0.66057562,103050.0,103040.0,1.53913253]
[1762696748729,0.48570768,103050.0,103040.0,1.53913253]
[1762696749535,0.66057562,103050.0,103040.0,1.53913253]
[1762696750030,1.19216562,103050.0,103040.0,1.17833253]
[1762696750335,1.19216562,103050.0,103040.0,1.53913253]
[1762696751022,1.01729768,103050.0,103040.0,1.53913253]
[1762696751422,1.01729768,103050.0,103040.0,1.51701726]
[1762696752135,0.48570768,103050.0,103040.0,1.51701726]
[1762696753739,0.71286295,103050.0,103040.0,1.51701726]
[1762696754237,0.43406879,103050.0,103040.0,1.75961726]
[1762696754622,0.44819757,103050.0,103040.0,1.51701726]
[1762696755034,0.00495143,103060.0,103050.0,0.25381]
[1762696755236,0.00495143,103060.0,103050.0,1.38819]
[1762696755432,0.15113939,103060.0,103050.0,1.38819]
[1762696756040,0.22936959,103060.0,103050.0,1.38819]
[1762696756339,0.91283959,103060.0,103050.0,1.39519]
[1762696756529,1.08749543,103060.0,103050.0,1.39519]
[1762696757541,1.10168872,103060.0,103050.0,1.39519]
[1762696757836,1.10168872,103060.0,103050.0,1.40219]
[1762696758338,1.10146735,103060.0,103050.0,1.40219]
[1762696758533,1.10146735,103060.0,103050.0,1.38639573]
[1762696759342,1.10146735,103060.0,103050.0,1.38635573]
[1762696760041,0.92703288,103060.0,103050.0,1.38635573]
[1762696764648,0.92703288,103060.0,103050.0,1.36424375]
[1762696764947,1.10146735,103060.0,103050.0,1.36424375]
[1762696765249,0.41799735,103060.0,103050.0,1.36424375]
[1762696765640,0.24356288,103060.0,103050.0,1.36424375]
[1762696768748,0.72979288,103060.0,103050.0,1.34845112]
[1762696768953,0.86876288,103060.0,103050.0,1.34845112]
[1762696771440,0.72979288,103060.0,103050.0,1.34845112]
[1762696773349,0.49695288,103060.0,103050.0,1.34845112]
[1762696774048,0.24356288,103060.0,103050.0,1.34845112]
[1762696776958,0.49695288,103060.0,103050.0,1.34845112]
[1762696777648,0.24356288,103060.0,103050.0,1.34845112]
[1762696778650,0.24356288,103060.0,103050.0,1.33265804]
[1762696778955,0.49695288,103060.0,103050.0,1.33265804]
[1762696779157,0.24356288,103060.0,103050.0,1.33265804]
[1762696779960,0.24356288,103060.0,103050.0,1.34265803]
[1762696780255,0.24356288,103060.0,103050.0,1.58525803]
[1762696781157,0.04851995,103060.0,103050.0,1.34265803]
[1762696781360,0.04851995,103060.0,103050.0,1.58525803]
[1762696781557,0.04851995,103060.0,103050.0,1.34265803]
[1762696781959,0.04851995,103060.0,103050.0,1.58525803]
[1762696782162,0.0638454,103060.0,103050.0,1.58525803]
[1762696782861,0.14129152,103060.0,103050.0,1.58525803]
[1762696783161,0.04851995,103060.0,103050.0,1.34265803]
[1762696783958,0.04851995,103060.0,103050.0,1.58525803]
[1762696784555,0.04851995,103060.0,103050.0,1.94605803]
[1762696784857,0.04851995,103060.0,103050.0,1.93905803]
[1762696785052,0.04851995,103060.0,103050.0,1.69645803]
[1762696785259,0.04851995,103060.0,103050.0,1.93205803]
[1762696786062,0.06350423,103060.0,103050.0,1.68945803]
[1762696786461,0.35723,103080.0,103050.0,1.47876999]
[1762696786764,0.50261547,103080.0,103070.0,1.00672]
[1762696786955,0.50261547,103080.0,103070.0,1.03612999]
[1762696786956,0.72320547,103080.0,103070.0,1.03612999]
[1762696787156,0.57887454,103080.0,103070.0,1.03612999]
[1762696787866,0.79946454,103080.0,103070.0,1.03612999]
[1762696788760,0.79946454,103080.0,103070.0,1.02034033]
[1762696788958,0.79946454,103080.0,103070.0,1.02134033]
[1762696789158,0.57887454,103080.0,103070.0,1.02134033]
[1762696789363,0.57887454,103080.0,103070.0,1.02130033]
[1762696789766,0.81430818,103080.0,103070.0,1.02130033]
[1762696791665,0.81430818,103080.0,103070.0,1.02630033]
[1762696796170,0.81430818,103080.0,103070.0,1.01630034]
[1762696796371,0.81430818,103080.0,103070.0,1.02630033]
[1762696798673,0.81430818,103080.0,103070.0,1.01051018]
[1762696798969,0.81430818,103080.0,103070.0,0.62030019]
[1762696799174,1.17510818,103080.0,103070.0,0.49108]
[1762696799372,1.34954265,103080.0,103070.0,0.49108]
[1762696799971,1.17510818,103080.0,103070.0,0.49108]
[1762696800477,1.42250818,103080.0,103070.0,0.19958394]
[1762696801367,0.59147,103070.0,103060.0,0.36094561]
[1762696801679,0.73724568,103070.0,103060.0,0.36094561]
[1762696802473,0.73724568,103070.0,103060.0,0.36294561]
[1762696802670,0.73724568,103070.0,103060.0,0.00214561]
[1762696803569,0.73724568,103070.0,103060.0,0.00814561]
[1762696803774,0.73724568,103070.0,103060.0,0.36894561]
[1762696804270,0.91168015,103070.0,103060.0,0.36894561]
[1762696804870,0.73724568,103070.0,103060.0,0.36894561]
[1762696805375,0.73724568,103070.0,103060.0,0.56388955]
[1762696805579,0.59147,103060.0,103030.0,0.3608]
[1762696805768,0.3608,103060.0,103050.0,0.60033]
[1762696805970,0.50676184,103060.0,103050.0,0.60033]
[1762696806472,1.47627975,103060.0,103040.0,0.60047561]
[1762696806674,1.10343502,103060.0,103040.0,0.14264561]
[1762696806870,0.98131711,103060.0,103040.0,0.36094561]
[1762696807073,0.98431711,103060.0,103040.0,0.50344561]
[1762696807377,0.98431711,103060.0,103040.0,0.96127561]
[1762696807779,0.98131711,103060.0,103040.0,0.36094561]
[1762696807970,0.73391711,103060.0,103040.0,0.00414561]
[1762696808173,0.73391711,103060.0,103040.0,0.36494561]
[1762696808478,0.73391711,103060.0,103040.0,0.14664561]
[1762696808774,0.73391711,103060.0,103040.0,0.50744561]
[1762696809277,0.50676184,103060.0,103040.0,0.50744561]
[1762696809481,0.50676184,103060.0,103040.0,0.14664561]
[1762696809673,0.50676184,103060.0,103040.0,0.14264561]
[1762696809872,0.50676184,103060.0,103040.0,0.73417561]
[1762696810472,0.00014561,103070.0,103050.0,0.3608]
[1762696810672,0.75978302,103070.0,103050.0,0.3608]
[1762696810873,0.14511565,103070.0,103050.0,0.3608]
[1762696811581,0.50591565,103070.0,103050.0,0.3618]
[1762696812181,1.10591565,103070.0,103050.0,0.3618]
[1762696813083,1.86462156,103070.0,103050.0,0.3618]
[1762696813782,1.86462156,103070.0,103050.0,0.4018]
[1762696814085,2.09177683,103070.0,103050.0,0.4018]
[1762696815180,1.86462156,103070.0,103050.0,0.4018]
[1762696816379,2.09177683,103070.0,103050.0,0.4018]
[1762696816886,2.09177683,103070.0,103050.0,0.041]
[1762696817286,1.49177683,103070.0,103040.0,0.36094561]
[1762696818187,1.49177683,103070.0,103040.0,0.50344561]
[1762696818388,0.1614,103060.0,103040.0,0.50344561]
[1762696818685,0.14607781,103060.0,103040.0,0.48764676]
[1762696819187,0.14607781,103060.0,103040.0,0.71537676]
[1762696819582,0.14607781,103060.0,103040.0,0.94547676]
[1762696819783,0.14607781,103060.0,103040.0,0.94562237]
[1762696821581,0.14607781,103060.0,103050.0,0.3608]
[1762696821778,0.50687781,103060.0,103040.0,0.94562237]
[1762696821987,0.17377953,103050.0,103040.0,0.96127561]
[1762696822489,0.32007905,103050.0,103040.0,0.96127561]
[1762696822689,0.14629952,103050.0,103040.0,0.96127561]
[1762696823691,0.32007905,103050.0,103040.0,0.58035759]
[1762696824388,0.68087905,103050.0,103040.0,0.58035759]
[1762696826384,0.73892905,103050.0,103040.0,0.28872738]
[1762696826583,0.73892905,103050.0,103040.0,0.22016]
[1762696826784,0.73892905,103050.0,103040.0,0.48349]
[1762696828386,0.79230479,103050.0,103040.0,0.22016]
[1762696828792,0.79230479,103050.0,103040.0,0.20436066]
[1762696829097,1.03992354,103070.0,103040.0,0.56516066]
[1762696829392,1.18512462,103070.0,103050.0,0.3608]
[1762696830692,0.9040526,103070.0,103050.0,0.3608]
[1762696833594,1.0654526,103070.0,103050.0,0.3608]
[1762696836198,1.4262526,103070.0,103050.0,0.19609524]
[1762696836602,0.3608,103060.0,103040.0,0.9982]
[1762696836794,0.3608,103060.0,103040.0,1.01761]
[1762696837099,0.5062796,103060.0,103040.0,0.75428]
[1762696837398,0.5062796,103060.0,103040.0,1.01761]
[1762696838202,0.5062796,103060.0,103040.0,1.01861]
[1762696838400,0.1454796,103060.0,103040.0,1.01861]
[1762696838795,0.1454796,103060.0,103040.0,1.00281035]
[1762696839400,0.5062796,103060.0,103040.0,1.00281035]
[1762696839599,0.92025152,103070.0,103050.0,0.3608]
[1762696840001,1.06549565,103070.0,103050.0,0.3608]
[1762696840902,1.34656767,103070.0,103050.0,0.3608]
[1762696841496,1.70736767,103070.0,103030.0,0.98493561]
[1762696841701,1.70736767,103070.0,103050.0,0.3608]
[1762696842298,1.70736767,103070.0,103040.0,0.3608]
[1762696843500,0.5222,103060.0,103040.0,0.29442691]
[1762696843802,0.66695702,103060.0,103040.0,0.00272371]
[1762696844003,0.66695702,103060.0,103030.0,0.98493561]
[1762696844004,0.3608,103050.0,103030.0,0.98493561]
[1762696844308,0.5067518,103050.0,103030.0,1.00434561]
[1762696845094,0.6681518,103050.0,103030.0,0.73128561]
[1762696845504,0.6691518,103050.0,103030.0,0.73128561]
[1762696846005,0.6691518,103050.0,103020.0,1.02151]
[1762696846006,0.01194,103030.0,103020.0,1.02151]
[1762696846208,0.13414097,103030.0,103020.0,0.65098]
[1762696846409,0.37031565,103030.0,103020.0,0.0828268]
[1762696846602,0.24811468,103030.0,103020.0,0.01941]
[1762696847205,0.24911468,103030.0,103020.0,0.01941]
[1762696847402,0.24911468,103030.0,103010.0,1.04567561]
[1762696847403,0.53785,103020.0,103010.0,1.04567561]
[1762696847600,0.53785,103020.0,103010.0,1.24061955]
[1762696847805,0.68421585,103020.0,103010.0,1.04567561]
[1762696848011,0.68421585,103020.0,103010.0,1.02354857]
[1762696848204,0.79781585,103020.0,103010.0,0.00014561]
[1762696848401,0.62076585,103020.0,103010.0,0.26578]
[1762696848597,0.26595,103010.0,103000.0,0.15591]
[1762696848797,0.83957872,103010.0,103000.0,0.68233379]
[1762696849006,0.98597133,103010.0,103000.0,0.68233379]
[1762696849208,0.98597133,103010.0,103000.0,0.54223]
[1762696849604,0.81152261,103010.0,103000.0,0.54223]
[1762696850110,0.81152261,103010.0,103000.0,0.54423]
[1762696850311,0.81152261,103010.0,103000.0,0.26778]
[1762696850512,0.81152261,103010.0,103000.0,0.54423]
[1762696850907,1.37226793,103010.0,103000.0,0.54423]
[1762696851109,1.29433376,103010.0,103000.0,0.54423]
[1762696851414,1.17232261,103010.0,103000.0,0.54623]
[1762696852116,0.69215,103000.0,102990.0,0.90317561]
[1762696852514,0.83835512,103000.0,102990.0,1.09811955]
[1762696852914,1.01254936,103000.0,102990.0,1.09811955]
[1762696853315,1.01254936,103000.0,102990.0,1.10011955]
[1762696853910,1.01254936,103000.0,102990.0,0.74131955]
[1762696854116,1.01254936,103000.0,102990.0,1.10211955]
[1762696854418,1.01254936,103000.0,102990.0,0.74131955]
[1762696855107,1.01254936,103000.0,102990.0,0.55746453]
[1762696855308,1.01254936,103000.0,102990.0,0.26568408]
[1762696855508,1.37334936,103000.0,102990.0,0.25035363]
[1762696855707,1.37334936,103000.0,102990.0,0.48513363]
[1762696856116,1.10144936,103000.0,102990.0,0.48513363]
[1762696856410,1.00501936,103000.0,102990.0,0.84593363]
[1762696856617,1.00501936,103000.0,102990.0,0.48513363]
[1762696857615,1.36581936,103000.0,102990.0,0.48513363]
[1762696858117,1.00501936,103000.0,102990.0,0.48513363]
[1762696858516,0.83082512,103000.0,102990.0,0.48513363]
[1762696858919,0.83082512,103000.0,102990.0,0.46932594]
[1762696860021,0.83082512,103000.0,102990.0,0.44719504]
[1762696860624,1.23166658,103000.0,102990.0,0.44719504]
[1762696861319,1.23166658,103000.0,102990.0,0.15540378]
[1762696861320,1.59246658,103000.0,102990.0,0.15540378]
[1762696861716,1.365609,103000.0,102990.0,0.15540378]
[1762696863913,1.19162512,103000.0,102990.0,0.15540378]
[1762696864114,0.83082512,103000.0,102990.0,0.15540378]
[1762696864409,0.70379,102990.0,102980.0,0.37089707]
[1762696864609,0.70379,102990.0,102980.0,0.36089708]
[1762696864610,0.82561515,102990.0,102980.0,0.36089708]
[1762696864913,0.9706565,102990.0,102980.0,0.37089707]
[1762696865112,0.9706565,102990.0,102980.0,0.36089708]
[1762696865316,0.84883135,102990.0,102980.0,9.708e-05]
[1762696865722,0.84883135,102990.0,102980.0,0.00309708]
[1762696865915,1.02289739,102990.0,102980.0,0.00509708]
[1762696866318,0.70379,102980.0,102970.0,0.35199561]
[1762696866717,1.0233067,102980.0,102970.0,0.35199561]
[1762696867425,0.70379,102970.0,102960.0,0.3608]
[1762696867621,0.70379,102970.0,102950.0,0.3608]
[1762696867622,0.70379,102960.0,102950.0,0.3608]
[1762696867820,0.70379,102960.0,102950.0,0.37079999]
[1762696868022,0.84886601,102960.0,102950.0,0.37079999]
[1762696868222,0.97074907,102960.0,102950.0,0.3608]
[1762696868419,0.97074907,102960.0,102940.0,0.3608]
[1762696868617,0.70379,102950.0,102940.0,0.37079999]
[1762696868924,0.92861286,102950.0,102940.0,0.37079999]
[1762696869126,0.92861286,102950.0,102940.0,0.35498743]
[1762696869829,0.92861286,102950.0,102940.0,0.35798743]
[1762696870220,1.28941286,102950.0,102940.0,0.01299999]
[1762696870427,0.92861286,102950.0,102940.0,0.01299999]
[1762696870624,1.28941286,102950.0,102940.0,0.01299999]
[1762696870819,0.92861286,102950.0,102940.0,0.01299999]
[1762696871020,0.92861286,102950.0,102940.0,0.01199999]
[1762696871329,0.92861286,102950.0,102940.0,0.002]
[1762696871330,1.4634789,102950.0,102940.0,0.002]
[1762696871624,0.70379,102930.0,102920.0,0.3608]
[1762696871830,0.82569917,102930.0,102920.0,0.37079999]
[1762696872130,0.97100221,102930.0,102920.0,0.37079999]
[1762696872821,0.98100221,102930.0,102920.0,0.37179999]
[1762696873029,0.98100221,102930.0,102920.0,0.37479999]
[1762696873525,0.97100221,102930.0,102920.0,0.37679999]
[1762696873722,0.70663221,102930.0,102920.0,0.37679999]
[1762696874129,0.97100221,102930.0,102920.0,0.37679999]
[1762696876021,0.97100221,102930.0,102920.0,0.3668]
[1762696876227,0.97100221,102930.0,102920.0,0.3658]
[1762696876416,1.05802951,102930.0,102920.0,0.37579999]
[1762696876621,0.16102019,102930.0,102920.0,0.37579999]
[1762696877026,0.16102019,102930.0,102920.0,0.97579999]
[1762696877322,0.16102019,102930.0,102920.0,0.97379999]
[1762696877521,0.14159019,102930.0,102920.0,1.21667999]
[1762696878126,0.14159019,102930.0,102920.0,0.97379999]
[1762696878531,0.14159019,102930.0,102920.0,1.21667999]
[1762696879115,0.15959019,102930.0,102920.0,0.97279999]
[1762696879628,0.15959019,102930.0,102920.0,0.61567999]
[1762696879833,0.15959019,102930.0,102920.0,0.37279999]
[1762696880020,0.24661749,102930.0,102920.0,0.37279999]
[1762696880221,0.15959019,102930.0,102920.0,0.37279999]